Cogmind - Beta 15 @@@ ROGUE MODE // 2025.10.06 @ 21:48:03 Player: WOAH_a BUG Result: Destroyed by G-34 Mercenary with Small Laser Performance ------------- Evolutions (1) 500 Regions Visited (2) 400 Robots Destroyed (13) 65 Value Destroyed (354) 354 Prototype IDs (2) 40 Alien Tech Used (0) 0 Bonus (0) 0 TOTAL SCORE: 1359 Bonus ------- None Cogmind --------- Core Integrity 0/400 Matter 300/300 Energy 100/100 System Corruption 0% Temperature Cool (6) Movement Core (350) Ox6 Location -9/Materials Parts ------- > --- POWER (1) -------- (None) > --- PROPULSION (2) --- Flight Unit > --- UTILITY (3) ------ Large Storage Unit > --- WEAPON (3) ------- (None) > --- INVENTORY (15) --- Authchip [Armor] Peak State ------------ > --- POWER ------------ Ion Engine > --- PROPULSION ------- Aluminum Leg Aluminum Leg > --- UTILITY ---------- Improved Heat Sink Large Storage Unit > --- WEAPON ----------- EM Pulse Gun Assault Rifle > --- INVENTORY -------- Light Ion Engine Flight Unit Flight Unit Medium Laser [Rating: 9] Favorites ----------- Power Ion Engine Engine Ion Engine Propulsion Aluminum Leg Leg Aluminum Leg Flight Unit Flight Unit Utility Large Storage Unit Device Improved Heat Sink Storage Large Storage Unit Weapon Assault Rifle Energy Gun EM Pulse Gun Ballistic Gun Assault Rifle Launcher Grenade Launcher Build | -11 -10 -9 ------- Run | Yrd Mat Mat Slots Evolved 2 | . . 2 Power . | . . . Propulsion . | . . . Utility 1 | . . 1 Weapon 1 | . . 1 Parts Attached 12 | 5 6 1 Power 2 | 1 . 1 Engine 2 | 1 . 1 Core . | . . . Reactor . | . . . Propulsion 4 | 2 2 . Treads . | . . . Leg 2 | 2 . . Wheel . | . . . Hover . | . . . Flight 2 | . 2 . Utility 2 | . 2 . Device 1 | . 1 . Storage 1 | . 1 . Processor . | . . . Hackware . | . . . Protection . | . . . Artifact . | . . . Weapon 4 | 2 2 . Energy Gun 2 | 1 1 . Energy Cannon . | . . . Ballistic Gun 1 | 1 . . Ballistic Cannon . | . . . Launcher 1 | . 1 . Special Weapon . | . . . Impact Weapon . | . . . Slashing Weapon . | . . . Piercing Weapon . | . . . Special Melee Weapon . | . . . Unidentified Prototypes . | . . . Parts Lost 9 | . 1 8 Power 2 | . . 2 Propulsion 2 | . . 2 Utility 1 | . . 1 Weapon 4 | . 1 3 Highest Loss Streak 4 | . 1 4 To Critical Strikes . | . . . Average Backups 3 | 1 4 2 Power . | . 1 . Propulsion 1 | . 1 1 Utility . | . . 1 Weapon . | . 1 . Tool/Special . | . . . Unused Backups 1 | . . 1 Power . | . . . Propulsion . | . . . Utility 1 | . . 1 Weapon . | . . . Tool/Special . | . . . Average Slot Usage (%) 85 | . 92 63 Engine 12 | . 14 9 Leg 23 | . 27 10 Flight 2 | . . 9 Device 9 | . 9 10 Storage 11 | . 11 11 Energy Gun 12 | . 14 9 Ballistic Gun 11 | . 13 2 Peak Build Rating 9 | 5 9 9 Average Rating 7 | 3 7 7 On Entrance 4 | . 5 9 Naked Turns . | . . . Heaviest Build 31 | 9 30 31 Greatest Support 20 | 20 20 20 Greatest Overweight (x) 5 | . 1 5 Average Overweight (x) . | . . 1 Largest Inventory Capacity 15 | 5 15 15 Average Capacity 12 | 5 12 15 Most Carried 6 | 4 6 5 Average Carried 3 | 1 4 2 Final Capacity 15 | 5 15 15 Final Carried 5 | 2 5 1 Class Distribution -------------------- 100% | Mutant Dominant Class ---------------- Mutant | -10/Materials Mutant | -9/Materials Resources | -11 -10 -9 ----------- Run | Yrd Mat Mat Matter Collected 429 | 157 247 25 Remotely . | . . . Salvage Created 446 | . 396 50 Parts 31 | . 26 5 Haulers Intercepted 1 | . 1 . Recyclers Shooed . | . . . Parts Field Recycled . | . . . Retrieved Matter . | . . . Parts Self-Destructed . | . . . Prevented . | . . . Kills | -11 -10 -9 ------- Run | Yrd Mat Mat Combat Hostiles Destroyed 10 | . 9 1 Guns 8 | . 8 . AOE 1 | . 1 . Classes Destroyed 6 | . 3 3 Worker 1 | . . 1 Hauler 1 | . 1 . Watcher 1 | . . 1 Swarmer 3 | . 3 . Grunt 6 | . 6 . Sentry 1 | . . 1 Best Kill Streak 3 | . 3 3 Combat Bots Only 3 | . 3 1 Max Kills in Single Turn 2 | . 2 1 Gunslinging 1 | . 1 . Exploded 1 | . 1 . Melee . | . . . Uniques/NPCs Destroyed . | . . . Combat | -11 -10 -9 -------- Run | Yrd Mat Mat Hostile Shots Fired 104 | . 35 69 Missed 23 | . 7 16 Hits 81 | . 28 53 Projectile 81 | . 28 53 Critical Strikes 1 | . . 1 Part Disruptions 1 | . . 1 Damage Taken 1260 | . 379 881 Core 446 | . 42 404 Absorbed by Shields . | . . . Core Remaining (%) 91 | 100 83 . Volleys Fired 34 | . 24 10 Largest 2 | . 2 2 Hottest 80 | . 70 80 Shots Fired 61 | . 47 14 Gun 58 | . 47 11 Cannon . | . . . Launcher 3 | . . 3 Special . | . . . Kinetic 25 | . 24 1 Thermal 14 | . 4 10 Explosive 3 | . . 3 Electromagnetic 19 | . 19 . Robot Hit Streak 13 | . 13 6 Robot Miss Streak 4 | . 2 4 Penetration Max . | . . . Secondary Targets 1 | . 1 . Max Gunslinging Chain 1 | . 1 . Shots Hit Robots 42 | . 32 10 Core Hits 22 | . 16 6 Critical Kills . | . . . Critical Parts Destroyed . | . . . Critical Strikes 2 | . . 2 Burn 2 | . . 2 Melee Attacks . | . . . Impact . | . . . Slashing . | . . . Piercing . | . . . Sneak Attacks . | . . . Combat Hostiles . | . . . Follow-up Attacks . | . . . Damage Inflicted 734 | . 536 198 Guns 489 | . 401 88 Cannons . | . . . Explosions 244 | . 135 109 Melee . | . . . Ramming 1 | . . 1 Kinetic 172 | . 172 . Thermal 249 | . 161 88 Explosive 109 | . . 109 Electromagnetic 203 | . 203 . Impact . | . . . Slashing . | . . . Piercing . | . . . Highest Corruption . | . . . Average Corruption . | . . . Corruption Purged . | . . . Corruption Blocked . | . . . Overload Shots . | . . . Overflow Damage 14 | . . 14 Projectiles . | . . . Explosions 14 | . . 14 Melee . | . . . Knockbacks . | . . . Impact . | . . . Kinetic . | . . . Secondary . | . . . Self-Inflicted Damage 190 | . 36 154 Shots 6 | . 1 5 Rammed 4 | . . 4 Targets Rammed 4 | . . 4 Kicked . | . . . Crushed . | . . . Highest Temperature 33 | . 33 . Average Temperature 24 | . 24 . Received Heat Transfer 477 | . 147 330 Siege Activations . | . . . Martial Activations . | . . . Shielding Activations . | . . . Robots Disrupted . | . . . Combat Hostiles . | . . . Robots Corrupted . | . . . Combat Hostiles . | . . . Parts Fried 1 | . 1 . Impact Corruptions . | . . . Robots Melted 1 | . . 1 Combat Hostiles 1 | . . 1 Parts Melted . | . . . Heat Transferred 631 | . 224 407 Parts Sabotaged . | . . . Parts Stolen . | . . . Parts Stripped . | . . . Power Chain Reactions 2 | . 2 . Alert | -11 -10 -9 ------- Run | Yrd Mat Mat Maximum Alert Level . | . . . Low Security (%) 100 | 100 100 100 Level 1 . | . . . Level 2 . | . . . Level 3 . | . . . Level 4 . | . . . Level 5 . | . . . High Security . | . . . Max Security . | . . . Peak Influence 92 | . 92 74 Initial 15 | . . 15 Average 36 | . 41 29 Influence Increases 401 | . 278 123 Destroy 0b10 Robot/C 200 | . 180 20 Destroy 0b10 Robot/NC 15 | . 5 10 Destroy Leader 54 | . 42 12 Successful Hack 29 | . 29 . Disable Machine 45 | . 15 30 Destroy Structure 13 | . 7 6 Partial Spotted 15 | . . 15 Lose Combat Pursuer 30 | . . 30 Influence Decreases 377 | . 241 136 Entered New Map 22 | . . 22 Time Decay 294 | . 231 63 Lost Part 61 | . 10 51 Squads Dispatched 1 | . 1 . Investigation 1 | . 1 . Extermination . | . . . Reinforcement . | . . . Assault . | . . . Garrison . | . . . Intercept . | . . . Searches Triggered . | . . . Construction Impeded . | . . . Haulers Reinforced . | . . . Active Scanning Responses . | . . . Cargo Convoy Interrupts . | . . . Stealth | -11 -10 -9 --------- Run | Yrd Mat Mat Distress Signals 4 | . 1 3 Communications Jammed . | . . . Distress Signals . | . . . Times Spotted 25 | . 16 9 Peak Tracking Total 8 | . 3 8 Tactical Retreats 1 | . . 1 Traps | -11 -10 -9 ------- Run | Yrd Mat Mat Traps Triggered 2 | . 2 . Indirectly . | . . . Trap Hack Attempts . | . . . Triggered . | . . . Disarmed . | . . . Reprogrammed . | . . . Reused . | . . . Traps Extracted . | . . . Installed . | . . . Triggered . | . . . Machines | -11 -10 -9 ---------- Run | Yrd Mat Mat Machines Disabled 3 | . 1 2 Max in Single Turn 2 | . 1 2 Machines Repaired . | . . . Machines Dismantled . | . . . Machines Sabotaged . | . . . Overloaded Fab Kills . | . . . Hacking | -11 -10 -9 --------- Run | Yrd Mat Mat Machines Accessed 4 | . 4 . Terminals 4 | . 4 . Fabricators . | . . . Repair Stations . | . . . Recycling Units . | . . . Scanalyzers . | . . . Garrison Access . | . . . Total Hacks 11 | . 11 . Successful 6 | . 6 . Failed 5 | . 5 . Catastrophic 3 | . 3 . Database Lockouts . | . . . Manual . | . . . Terminals 11 | . 11 . Fabricators . | . . . Repair Stations . | . . . Recycling Units . | . . . Scanalyzers . | . . . Garrison Access . | . . . Terminal Hacks 6 | . 6 . Prototype ID Bank 1 | . 1 . Investigation Status 1 | . 1 . Hauler Manifests 2 | . 2 . Registered Prototypes 1 | . 1 . Zone Layout 1 | . 1 . Fabricator Hacks . | . . . Repair Station Hacks . | . . . Recycling Unit Hacks . | . . . Scanalyzer . | . . . Garrison Access Hacks . | . . . Unauthorized Hacks . | . . . Terminals . | . . . Fabricators . | . . . Repair Stations . | . . . Recycling Units . | . . . Scanalyzers . | . . . Garrison Access . | . . . Data Cores Recovered . | . . . Used . | . . . Hacking Detections 4 | . 4 . Full Trace Events . | . . . Feedback Events . | . . . Feedback Blocked . | . . . Robot Schematics Acquired . | . . . Robots Built . | . . . Authchips . | . . . Time . | . . . Total Robot Build Rating . | . . . Part Schematics Acquired . | . . . Parts Built . | . . . Authchips . | . . . Time . | . . . Total Part Build Rating . | . . . Parts Repaired . | . . . Time . | . . . Parts Recycled . | . . . Recycled Matter . | . . . Retrieved Matter . | . . . Retrieved Components . | . . . Parts Scanalyzed . | . . . Part Schematics Acquired . | . . . Parts Damaged . | . . . Bothacking | -11 -10 -9 ------------ Run | Yrd Mat Mat Used RIF Installer . | . . . Robots Hacked . | . . . Non-combat . | . . . Combat . | . . . Robot Hacks Applied . | . . . Relay Couplers Released . | . . . Fabnet Peak Effective % . | . . . Robots Rewired . | . . . Allies Hacked . | . . . Hacks Repelled . | . . . Allies | -11 -10 -9 -------- Run | Yrd Mat Mat Total Allies . | . . . Largest Group . | . . . Highest-Rated Group . | . . . Highest-Rated Ally . | . . . Total Orders . | . . . Ally Attacks . | . . . Total Damage . | . . . Kills . | . . . Allies Corrupted . | . . . Allies Melted . | . . . Intel | -11 -10 -9 ------- Run | Yrd Mat Mat Active Infowar (turns) . | . . . Robot Analysis Total . | . . . Derelict Logs Recovered . | . . . Drone Launches . | . . . Drone Recoveries . | . . . Exploration | -11 -10 -9 ------------- Run | Yrd Mat Mat Turns Passed 804 | 58 567 179 Spaces Moved 341 | 42 245 54 Core 13 | 13 . . Treads . | . . . Legs 301 | 29 243 29 Wheels . | . . . Hover . | . . . Flight 27 | . 2 25 Fastest Speed 50 | 50 117 190 Average Speed 170 | 98 168 231 Slowest Speed 440 | 120 190 440 Overloaded Moves . | . . . Propulsion Burnouts . | . . . Robots Hopped . | . . . Potential Cave-ins . | . . . Cave-ins Triggered . | . . . Exploration Rate (%) 17 | 4 43 6 Regions Visited 2 Branch Regions . Pre-discovered Areas . | . . . Known Exits Taken . | . . . Unknown Exits Taken 2 | 1 1 . Scrap Searched . | . . . Spaces Dug . | . . . Terrain Destroyed 10 | . 4 6 Melee . | . . . Projectile . | . . . AOE 10 | . 4 6 Terrain Rammed . | . . . Walls Destroyed . | . . . Machines Disabled . | . . . Actions | -11 -10 -9 --------- Run | Yrd Mat Mat Total 491 | 58 350 83 Wait 78 | 5 63 10 Move 339 | 41 244 54 Hop . | . . . Pick Up 15 | 7 8 . Fast Attach . | . . . Attach 12 | 5 3 4 Detach . | . . . Swap 6 | . 6 . Drop 3 | . 2 1 Fire 34 | . 24 10 Melee . | . . . Ram 4 | . . 4 Kick . | . . . Crush . | . . . Escape Stasis . | . . . Rewire . | . . . Trap . | . . . Miscellaneous . | . . . Route ------- -11/Scrapyard -10/Materials -9/Materials History --------- Turn | Location | Event 17 | -11/Scrapyard | Discovered new exit (range 14) 59 | -11/Scrapyard | Entered Materials 307 | -10/Materials | Build established: Mutant 611 | -10/Materials | Discovered new exit (range 9) 626 | -10/Materials | Entered another Materials area 626 | -9/Materials | Evolved 2 slots: Utility x1, Weapon x1 745 | -9/Materials | Lost 4 parts (1p1n2w) 796 | -9/Materials | Core integrity fell below 50% 802 | -9/Materials | Core integrity fell below 20% 805 | -9/Materials | Destroyed by G-34 Mercenary with Small Laser Last Messages --------------- K-01 Serf collects debris. U-05 Engineer lays Concrete. U-05 Engineer builds a Wall. K-01 Serf collects debris. U-05 Engineer builds a Wall. U-05 Engineer lays Concrete. U-05 Engineer builds a Door. U-05 Engineer lays Concrete. Critical hit (Burn: +37). W-16 Scout sends out distress signal. G-34 Mercenary suffers critical hit (Burn). Med. Laser destroyed. Flight Unit destroyed. Slammed into G-34 Mercenary. Lgt. Ion Engine destroyed. Slammed into G-47 Trooper. Imp. Heat Sink destroyed. Slammed into G-34 Mercenary. Flight Unit broken. Destabilizing: Short circuit. Map ----- +----------------------------------------------------+ | ??????????????????????????????????????????????? | | ??????????????????????????????????????????????? | | ??????????????????????????????????????????????? | | ??????????????????????????????????????????????? | | ??????????????????????????????????????????????? | | ??????????????????????????????????????????????? | | ??????????????????????????????????????????????? | | ??????????????????????????????????????????????? | | ??????????????????????????????????????????????? | | ??????????????????????????????????????????????? | | ??????????????????????????????????????????????? | | ??????????????????????????????????????????????? | | ??????????????????????????????????????????????? | | ??????????????????????????????????????????????? | | ??????????????????????????????????????????????? | | ??????????????????????????????????????????????? | | ??????????????????????????????????????????????? | | ??????????????????????????????????????????????? | | ??????????????????????????????????????????????? | | ?????????????????????????????????+????????????? | | ???????????????????????????????? ?????????????? | | ??????????????????????????????? #?????????????? | | ????????????????????######???? #?????????????? | | ????????????????????# ##### #?????????????? | | ????????????????????+ gYY #?????????????? | | ????????????????????# @gg #?????????????? | | ????????????????????# ##/#########?????????? | | ????????????????????## ## """""?????????? | | ?????????????????????# k## """""?????????? | | ?????????????????????# ## """""?????????? | | ?????????????????????# ## ????????? | | ???????????########### ## * #???????? | | ???????? ###############???????? | | ???????? #?????????? | | ???????? % #?????????? | | ????????? = #?????????? | | ????????? ####################/ ###?????????? | | ?????????????????????????# = =[ #??????????? | | ?????????????????????????# #??????????? | | ?????????????????????????# #??????????? | | ?????????????????????????# #??????????? | | ?????????????????????????# #??????????? | | ?????????????????????????# #??????????? | | ?????????????????????????# #??????????? | | ?????????????????????????# #??????????? | | ?????????????????????????###########??????????? | | ??????????????????????????????????????????????? | | ??????????????????????????????????????????????? | | ??????????????????????????????????????????????? | | ??????????????????????????????????????????????? | +----------------------------------------------------+ Best States ------------- Heat Dissipation 42 Energy Generation 10 Energy Capacity 250 Matter Stores 300 Matter Capacity 300 Sight Range 16 Terrain Scan Density 10 Evasion (%) 55 Authchip Count 1 Item Schematics ----------------- None Robot Schematics ------------------ None Fabricated ------------ Nothing Repaired ---------- Nothing Alien Tech Used ----------------- None Achievements -------------- None Challenges ------------ None Game ------ Seed SwarmRemoteVibroblade Manual? 0 Play Time 00:11:02 Cumulative 8.4 hours Start 2025.10.06 @ 21:36:53 End 2025.10.06 @ 21:48:03 Sessions 1 Manual Loads 0 Difficulty Rogue Special Mode None Game No. 14 Rogue 14 Adventurer 0 Explorer 0 Win Type - Total 0 Types 0/0/0/0/0/0/0/0/0/0 Lore% 2 Gallery% 10 Achievement% 11 Wizard Run 0 Options --------- Layout 1 ASCII 0 Keyboard 0 Movement Mouse Keybinds 0 Fullscreen 1 Font 24/Smallcaps Map View 50x35 Zoom Use 2% Tactical HUD 0 Map Filters NONE Filters NONE Steam 1 RUN: abf4d011-d1cf-43b4-9e6f-5c50278a6a84